lending/lending_fUSD_20251116
["ID","MTS","AMOUNT","RATE_DAILY","PERIOD"]
[394143108,1763319059291,-436.16,0.00038192,2]
[394143109,1763319059301,-500.5298232,0.00038205,30]
[394143110,1763319059310,-1400.0,0.00038222,30]
[394143111,1763319059321,-500.0,0.00038225,30]
[394143112,1763319059331,-175.95,0.00038247,2]
[394143113,1763319059340,-150.0,0.00038247,2]
[394143114,1763319059349,-150.0,0.00038247,2]
[394143115,1763319059359,-150.0,0.00038247,2]
[394143116,1763319059368,-150.0,0.00038247,2]
[394143117,1763319059377,-150.0,0.00038247,2]
[394143118,1763319059387,-150.0,0.00038247,2]
[394143119,1763319059396,-150.0,0.00038247,2]
[394143120,1763319059406,-150.0,0.00038247,2]
[394143121,1763319059415,-150.0,0.00038247,2]
[394143122,1763319059424,-150.0,0.00038247,2]
[394143123,1763319059434,-150.0,0.00038247,2]
[394143124,1763319059443,-150.0,0.00038247,2]
[394143125,1763319059452,-150.0,0.00038247,2]
[394143126,1763319059461,-150.0,0.00038247,2]
[394143127,1763319059471,-1100.0,0.00038256,30]
[394143128,1763319059480,-26.2829722,0.00038261,30]
[394143129,1763319059493,-473.7170278,0.00038261,30]
[394143130,1763319059502,-1100.0,0.00038262,30]
[394143131,1763319059512,-1406.00025,0.00038288,30]
[394143132,1763319059521,-527.247811,0.00038292,120]
[394143133,1763319059530,-500.0,0.00038302,30]
[394143134,1763319059539,-500.0,0.00038307,30]
[394143135,1763319059548,-1100.0,0.00038315,30]
[394143136,1763319059558,-600.0,0.00038328,30]
[394143137,1763319059567,-500.0,0.00038356,2]
[394143138,1763319059576,-500.0,0.00038356,2]
[394143139,1763319059585,-185.5789899,0.00038356,2]
[394143140,1763319059595,-500.0,0.00038356,2]
[394143141,1763319059604,-1000.0,0.00038356,2]
[394143142,1763319059614,-500.0,0.00038356,2]
[394143143,1763319059624,-418.60931539,0.00038356,2]
[394143144,1763319059633,-499.36926,0.00038356,2]
[394143145,1763319059642,-2000.0,0.00038356,120]
[394143146,1763319059652,-563.06862548,0.00038356,120]
[394143147,1763319059662,-404.28574834,0.00038356,120]
[394143148,1763319059671,-384.0,0.00038356,5]
[394143149,1763319059680,-500.0,0.00038356,120]
[394143150,1763319059689,-500.0,0.00038356,120]
[394143151,1763319059698,-335.59314474,0.00038356,120]
[394143152,1763319059707,-500.0,0.00038356,2]
[394143153,1763319059716,-717.77,0.00038356,2]
[394143154,1763319059726,-500.0,0.00038356,2]
[394143155,1763319059735,-4535.39,0.00038356,2]
[394143156,1763319059746,-354.49277787,0.00038356,2]
[394143157,1763319059757,-145.50722213,0.00038356,2]
[394143158,1763319059767,-300.0,0.00038356,2]
[394143159,1763319059777,-300.0,0.00038356,2]
[394143160,1763319059786,-151.0,0.00038356,120]
[394143161,1763319059796,-218.849968,0.00038356,120]
[394143162,1763319059805,-151.0,0.00038356,120]
[394143163,1763319059815,-151.0,0.00038356,120]
[394143164,1763319059824,-151.0,0.00038356,120]
[394143165,1763319059834,-151.0,0.00038356,120]
[394143166,1763319059843,-151.0,0.00038356,120]
[394143167,1763319059852,-151.0,0.00038356,120]
[394143168,1763319059862,-151.0,0.00038356,120]
[394143169,1763319059872,-300.610292,0.00038356,120]
[394143170,1763319059882,-1000.0,0.00038356,14]
[394143171,1763319059891,-150.53851115,0.00038356,5]
[394143172,1763319059900,-600.0,0.00038413,30]
[394143173,1763319059910,-1406.00025,0.00038488,30]
[394143174,1763319059919,-500.0,0.00038529,30]
[394143175,1763319059930,-500.0,0.00038544,30]
[394143176,1763319059940,-500.0,0.00038577,30]
[394143177,1763319059950,-228.58575698,0.00038577,15]
[394143178,1763319059959,-1268.14,0.000386,30]
[394143179,1763319059969,-500.0,0.00038611,30]
[394143180,1763319059978,-1000.0,0.0003863,2]
[394143181,1763319059989,-317.84610538,0.0003863,2]
[394143182,1763319059999,-717.77,0.0003863,2]
[394143183,1763319060008,-500.0,0.0003863,2]
[394143184,1763319060018,-4535.39,0.0003863,2]
[394143185,1763319060027,-500.0,0.0003863,2]
[394143186,1763319060037,-300.0,0.0003863,2]
[394143187,1763319060047,-300.0,0.0003863,2]
[394143188,1763319060057,-1000.0,0.0003863,14]
[394143189,1763319060067,-500.0,0.00038663,30]
[394143190,1763319060076,-900.0,0.00038684,30]
[394143191,1763319060085,-1406.00025,0.00038688,30]
[394143192,1763319060094,-900.0,0.000387,2]
[394143193,1763319060103,-900.0,0.000387,2]
[394143194,1763319060112,-900.0,0.000387,2]
[394143195,1763319060122,-900.0,0.000387,2]
[394143196,1763319060131,-900.0,0.000387,2]
[394143197,1763319060141,-900.0,0.000387,2]
[394143198,1763319060150,-900.0,0.000387,2]
[394143199,1763319060159,-900.0,0.000387,2]
[394143200,1763319060168,-900.0,0.000387,2]
[394143201,1763319060177,-900.0,0.000387,2]
[394143202,1763319060186,-900.0,0.000387,2]
[394143203,1763319060196,-900.0,0.000387,2]
[394143204,1763319060205,-900.0,0.000387,2]
[394143205,1763319060214,-900.0,0.000387,2]
[394143206,1763319060223,-900.0,0.000387,2]
[394143207,1763319060235,-900.0,0.000387,2]
[394143208,1763319060246,-900.0,0.000387,2]
[394143209,1763319060256,-900.0,0.000387,2]
[394143210,1763319060265,-900.0,0.000387,2]
[394143211,1763319060275,-378.272425,0.000387,2]
[394143212,1763319060285,-900.0,0.000387,2]
[394143213,1763319060294,-900.0,0.000387,2]
[394143214,1763319060303,-900.0,0.000387,2]
[394143215,1763319060314,-900.0,0.000387,2]
[394143216,1763319060323,-900.0,0.000387,2]
[394143217,1763319060333,-900.0,0.000387,2]
[394143218,1763319060342,-900.0,0.000387,2]
[394143219,1763319060351,-900.0,0.000387,2]
[394143220,1763319060361,-900.0,0.000387,2]
[394143221,1763319060371,-900.0,0.000387,2]
[394143222,1763319060380,-900.0,0.000387,2]
[394143223,1763319060389,-900.0,0.000387,2]
[394143224,1763319060398,-900.0,0.000387,2]
[394143225,1763319060407,-900.0,0.000387,2]
[394143226,1763319060417,-900.0,0.000387,2]
[394143227,1763319060426,-900.0,0.000387,2]
[394143228,1763319060435,-900.0,0.000387,2]
[394143229,1763319060444,-900.0,0.000387,2]
[394143230,1763319060453,-900.0,0.000387,2]
[394143231,1763319060463,-900.0,0.000387,2]
[394143232,1763319060475,-900.0,0.000387,2]
[394143233,1763319060485,-900.0,0.000387,2]
[394143234,1763319060496,-900.0,0.000387,2]
[394143235,1763319060505,-900.0,0.000387,2]
[394143236,1763319060515,-900.0,0.000387,2]
[394143237,1763319060524,-900.0,0.000387,2]
[394143238,1763319060534,-900.0,0.000387,2]
[394143239,1763319060543,-900.0,0.000387,2]
[394143240,1763319060553,-900.0,0.000387,2]
[394143241,1763319060562,-900.0,0.000387,2]
[394143242,1763319060572,-900.0,0.000387,2]
[394143243,1763319060582,-900.0,0.000387,2]
[394143244,1763319060591,-900.0,0.000387,2]
[394143245,1763319060601,-900.0,0.000387,2]
[394143246,1763319060611,-900.0,0.000387,2]
[394143247,1763319060621,-900.0,0.000387,2]
[394143248,1763319060631,-900.0,0.000387,2]
[394143249,1763319060642,-900.0,0.000387,2]
[394143250,1763319060652,-900.0,0.000387,2]
[394143251,1763319060662,-900.0,0.000387,2]
[394143252,1763319060672,-900.0,0.000387,2]
[394143253,1763319060681,-900.0,0.000387,3]
[394143254,1763319060690,-900.0,0.000387,3]
[394143255,1763319060701,-900.0,0.000387,2]
[394143256,1763319060711,-900.0,0.000387,4]
[394143257,1763319060721,-900.0,0.000387,5]
[394143258,1763319060731,-900.0,0.000387,5]
[394143259,1763319060745,-900.0,0.000387,7]
[394143260,1763319060755,-900.0,0.000387,5]
[394143261,1763319060765,-900.0,0.000387,4]
[394143262,1763319060775,-900.0,0.000387,5]
[394143263,1763319060785,-900.0,0.000387,2]
[394143264,1763319060795,-900.0,0.000387,2]
[394143265,1763319060805,-900.0,0.000387,2]
[394143266,1763319060815,-900.0,0.000387,2]
[394143267,1763319060824,-655.8,0.000387,2]
[394143268,1763319060835,-5501.0,0.000387,117]
[394143269,1763319060845,-160.47,0.000387,14]
[394143270,1763319060854,-776.33,0.000387,30]
[394143271,1763319060864,-151.0,0.000387,10]
[394143272,1763319060874,-151.0,0.000387,120]
[394143273,1763319060884,-151.0,0.000387,120]
[394143274,1763319060893,-151.0,0.000387,120]
[394143275,1763319060903,-500.0,0.00038732,30]
[394143276,1763319060912,-152.02,0.00038746,120]
[394143277,1763319060921,-150.6,0.00038755,120]
[394143278,1763319060930,-500.0,0.00038765,30]
[394143279,1763319060940,-1100.0,0.00038777,30]
[394143280,1763319060949,-152.48,0.00038784,120]
[394143281,1763319060960,-984.64322612,0.00038786,2]
[394143282,1763319060970,-1100.0,0.00038786,30]
[394143283,1763319060980,-1462.06036421,0.000388,30]
[394143284,1763319060992,-1400.0,0.00038818,30]
[394143285,1763319061002,-1400.0,0.00038826,30]
[394143286,1763319061011,-718.93025998,0.00038836,2]
[394143287,1763319061021,-152.02,0.00038846,120]
[394143288,1763319061031,-709.78610136,0.0003886,2]
[394143289,1763319061040,-1003.69,0.0003888,2]
[394143290,1763319061050,-152.48,0.00038884,120]
[394143291,1763319061060,-776.33,0.000389,30]
[394143292,1763319061070,-776.33,0.000389,30]
[394143293,1763319061079,-1000.0,0.00038904,2]
[394143294,1763319061089,-717.77,0.00038904,2]
[394143295,1763319061099,-276.91216785,0.00038904,2]
[394143296,1763319061109,-4535.39,0.00038904,2]
[394143297,1763319061119,-500.0,0.00038904,2]
[394143298,1763319061129,-300.0,0.00038904,2]
[394143299,1763319061139,-337.68888476,0.00038904,2]
[394143300,1763319061148,-351.38781837,0.00038904,14]
[394143301,1763319061158,-4877.29,0.00038904,2]
[394143302,1763319061167,-1000.0,0.00038904,14]
[394143303,1763319061176,-152.02,0.00038946,120]
[394143304,1763319061186,-189.05895988,0.00038961,7]
[394143305,1763319061196,-500.0,0.0003897,30]
[394143306,1763319061205,-152.0,0.00038973,10]
[394143307,1763319061214,-600.0,0.00038982,30]
[394143308,1763319061228,-152.48,0.00038984,120]
[394143309,1763319061248,-900.0,0.00038996,30]
[394143310,1763319061258,-76.76757503,0.00039,5]
[394143311,1763319061272,-73.23242497,0.00039,5]
[394143312,1763319061282,-770.0,0.00039,30]
[394143313,1763319061291,-177.0,0.00039,30]
[394143314,1763319061301,-466.69975,0.00039,2]
[394143315,1763319061310,-744.46144285,0.00039011,2]
[394143316,1763319061320,-290.36226725,0.00039025,30]
[394143317,1763319061329,-152.02,0.00039046,120]
[394143318,1763319061338,-150.0,0.00039068,2]
[394143319,1763319061348,-150.0,0.00039068,2]
[394143320,1763319061357,-150.0,0.00039068,2]
[394143321,1763319061366,-150.0,0.00039068,2]
[394143322,1763319061375,-150.0,0.00039068,2]
[394143323,1763319061384,-150.0,0.00039068,2]
[394143324,1763319061394,-150.0,0.00039068,2]
[394143325,1763319061403,-150.0,0.00039068,2]
[394143326,1763319061413,-150.0,0.00039068,2]
[394143327,1763319061422,-150.0,0.00039068,2]
[394143328,1763319061432,-150.0,0.00039068,2]
[394143329,1763319061442,-150.0,0.00039068,2]
[394143330,1763319061452,-150.0,0.00039068,2]
[394143331,1763319061461,-150.0,0.00039068,2]
[394143332,1763319061471,-150.0,0.00039068,2]
[394143333,1763319061481,-150.0,0.00039068,2]
[394143334,1763319061494,-150.0,0.00039068,2]
[394143335,1763319061503,-150.0,0.00039068,2]
[394143336,1763319061513,-150.0,0.00039068,2]
[394143337,1763319061522,-500.0,0.00039081,30]
[394143338,1763319061532,-152.48,0.00039084,120]
[394143339,1763319061542,-1406.00025,0.00039088,30]
[394143340,1763319061551,-152.02,0.00039146,120]
[394143341,1763319061562,-1000.0,0.00039178,2]
[394143342,1763319061571,-717.77,0.00039178,2]
[394143343,1763319061581,-4535.39,0.00039178,2]
[394143344,1763319061591,-500.0,0.00039178,2]
[394143345,1763319061601,-300.0,0.00039178,2]
[394143346,1763319061610,-1000.0,0.00039178,14]
[394143347,1763319061619,-139.28193424,0.00039184,120]
[394143348,1763319061634,-13.19806576,0.00039184,120]
[394143349,1763319061647,-1268.14,0.000392,30]
[394143350,1763319061656,-1100.0,0.00039238,30]
[394143351,1763319061666,-152.02,0.00039246,120]
[394143352,1763319061676,-332.0,0.00039267,90]
[394143353,1763319061687,-343.0,0.00039267,90]
[394143354,1763319061696,-152.48,0.00039284,120]
[394143355,1763319061705,-1406.00025,0.00039288,30]
[394143356,1763319061715,-1400.0,0.00039294,30]
[394143357,1763319061724,-500.0,0.00039307,30]
[394143358,1763319061735,-500.0,0.0003931,30]
[394143359,1763319061746,-1400.0,0.00039311,30]
[394143360,1763319061755,-152.02,0.00039346,120]
[394143361,1763319061766,-1528.92,0.00039366,30]
[394143362,1763319061775,-937.8483893,0.00039381,2]
[394143363,1763319061784,-1930.755829,0.00039381,2]
[394143364,1763319061796,-1505.6281414,0.00039381,2]
[394143365,1763319061806,-600.0,0.00039384,120]
[394143366,1763319061816,-152.48,0.00039384,120]
[394143367,1763319061825,-500.0,0.00039387,30]
[394143368,1763319061835,-160.47,0.000394,14]
[394143369,1763319061844,-197.6218586,0.00039434,30]
[394143370,1763319226812,663.99,0.00013699,2]
[394143576,1763319881056,1148.09,0.00011731,2]
[394143577,1763319881086,1148.09,0.00012349,2]
[394143578,1763319881289,1148.09,0.00012966,2]
[394143579,1763319881501,1148.09,0.00013584,2]
[394143580,1763319881719,1148.09,0.00014201,2]
[394143581,1763319881938,1148.09,0.00014819,2]
[394143582,1763319882176,1148.09,0.00015436,2]
[394143583,1763319882386,1148.09,0.00016054,2]
[394143587,1763319907965,153.0,0.00022,30]
[394143588,1763319908201,152.0,0.00022,30]
[394143589,1763319908452,152.0,0.00022,30]
[394143590,1763319908691,152.0,0.00022,30]
[394143591,1763319909215,152.0,0.00022,30]
[394143592,1763319909387,152.0,0.00022,30]
[394143593,1763319909446,152.0,0.00022,30]
[394143594,1763319909669,152.0,0.00022,30]
[394143606,1763320007313,210.49,0.00026081,120]
[394143607,1763320007517,210.49,0.00028689,120]
[394143776,1763320232150,-181.60109685,0.00016348,2]
[394143778,1763320232161,-188.39890315,0.00016348,2]
[394143779,1763320232209,-1011.60109685,0.00016348,2]
[394143780,1763320232218,-300.0,0.00016348,2]
[394143781,1763320232230,-3503.09890315,0.00016349,2]
[394143782,1763320232312,-614.50389,0.00016349,2]
[394143783,1763320232367,-25135.43670685,0.00016349,2]
[394143784,1763320232377,-205.72718135,0.00016371,2]
[394143785,1763320232387,-502.30842797,0.00016438,2]
[394143786,1763320232396,-1200.0,0.00016448,2]
[394143787,1763320232406,-181.60109685,0.00016471,2]
[394143788,1763320232416,-455.0,0.0001657,2]
[394143789,1763320232426,-13497.23946692,0.00016571,2]
[394143790,1763320232435,-1148.09,0.00016671,2]
[394143791,1763320232445,-500.0,0.0001702,2]
[394143792,1763320232454,-500.0,0.0001702,2]
[394143793,1763320232466,-506.48647168,0.0001702,2]
[394143794,1763320232476,-500.0,0.0001702,2]
[394143795,1763320232490,-500.0,0.0001702,2]
[394143796,1763320232499,-500.0,0.0001702,2]
[394143797,1763320232509,-500.0,0.0001702,2]
[394143798,1763320232518,-500.0,0.0001702,2]
[394143799,1763320232527,-620.64256179,0.00017175,2]
[394143801,1763320232536,-500.0,0.00017175,2]
[394143802,1763320232545,-500.0,0.00017175,2]
[394143804,1763320232555,-1148.09,0.00017289,2]
[394143806,1763320232564,-500.0,0.00017568,2]
[394143808,1763320232573,-500.0,0.00017568,2]
[394143810,1763320232583,-580.82575013,0.00017568,2]
[394143812,1763320232594,-500.0,0.00017568,2]
[394143815,1763320232609,-510.09371407,0.00017723,2]
[394143817,1763320232622,-932.55947807,0.00017723,2]
[394143819,1763320232631,-2759.98,0.0001782,2]
[394143821,1763320232641,-852.92263344,0.00017906,2]
[394143839,1763320232998,-295.16736656,0.00017906,2]
[394143840,1763320233009,-109.97916136,0.00017957,2]
[394143843,1763320238256,-144.02083864,0.00017957,2]
[394143844,1763320238265,-799.56916136,0.00018523,2]
[394143845,1763320238310,-348.52083864,0.00018523,2]
[394143846,1763320238320,-161.38697369,0.00019,2]
[394143847,1763320238330,-311.56154105,0.00019,2]
[394143848,1763320238339,-1148.09,0.00019141,2]
[394143849,1763320238349,-13497.23946684,0.00019141,2]
[394143850,1763320238359,-205.72718128,0.00019145,2]
[394143852,1763320238369,-1148.09,0.00019758,2]
[394143854,1763320238380,-663.99,0.00020187,2]
[394143855,1763320238390,-1148.09,0.00020376,2]
[394143856,1763320238399,-182.08,0.000205,2]
[394143857,1763320238410,-210.49,0.00020865,2]
[394143858,1763320238420,-150.0,0.00020896,2]
[394143859,1763320238430,-1148.09,0.00020993,2]
[394143860,1763320238440,-1794.39,0.00021066,2]
[394143861,1763320238450,-200.0,0.00021066,2]
[394143862,1763320238460,-1148.09,0.00021611,2]
[394143863,1763320238473,-182.08,0.00021639,2]
[394143864,1763320238484,-13497.23946684,0.00021711,2]
[394143865,1763320238494,-205.72718128,0.0002192,2]
[394143866,1763320238505,-1148.09,0.00022228,2]
[394143867,1763320238515,-479.06402154,0.00022437,2]
[394143868,1763320238525,-182.08,0.00022778,2]
[394143869,1763320238535,-1148.09,0.00022846,2]
[394143870,1763320238545,-834.79,0.000231,14]
[394143871,1763320238555,-600.0,0.00023124,2]
[394143872,1763320238564,-406.99,0.00023124,2]
[394143873,1763320238574,-216.5,0.00023279,2]
[394143874,1763320238583,-1148.09,0.00023463,2]
[394143875,1763320238594,-210.49,0.00023473,2]
[394143876,1763320238608,-216.5,0.00023553,2]
[394143877,1763320238617,-215.39383382,0.00023669,2]
[394143878,1763320238627,-216.5,0.00023827,2]
[394143879,1763320238637,-182.08,0.00023916,2]
[394143880,1763320238647,-216.5,0.00024101,2]
[394143881,1763320238657,-13497.23946684,0.00024281,2]
[394143882,1763320238668,-216.52784937,0.00024375,2]
[394143883,1763320238679,-1287.7,0.00024446,30]
[394143884,1763320238689,-232.18,0.00024561,2]
[394143885,1763320238699,-198.11,0.00024658,2]
[394143886,1763320238708,-205.72718128,0.00024694,2]
[394143887,1763320238720,-500.0,0.00024773,2]
[394143888,1763320238730,-500.0,0.00024773,2]
[394143889,1763320238740,-23772.17451354,0.00024773,2]
[394143890,1763320238750,-479.06402154,0.000248,3]
[394143891,1763320238950,-244617.158668,0.000248,3]
[394143892,1763320238962,-503.10398697,0.00024873,2]
[394143893,1763320238978,-500.0,0.00024873,2]
[394143894,1763320238989,-500.0,0.00024873,2]
[394143895,1763320239000,-500.0,0.00024873,2]
[394143896,1763320239011,-500.0,0.00024873,2]
[394143897,1763320239022,-300.0,0.000249,9]
[394143898,1763320239032,-80030.0139687,0.000249,3]
[394143899,1763320239042,-182.08,0.00025055,2]
[394143900,1763320239052,-1190.0,0.00025131,2]
[394143901,1763320239062,-907.0,0.00025131,2]
[394143902,1763320239073,-505.547,0.00025131,2]
[394143903,1763320239084,-1604.0,0.00025131,2]
[394143904,1763320239095,-560.0,0.00025131,2]
[394143905,1763320239107,-250.0,0.00025136,2]
[394143906,1763320239120,-502.62177573,0.00025421,2]
[394143907,1763320239134,-500.0,0.00025421,2]
[394143908,1763320239145,-297.01930622,0.00025421,2]
[394143909,1763320239157,-26676.6713229,0.00025565,3]
[394143910,1763320239169,-150.0,0.00025575,2]
[394143911,1763320239181,-150.0,0.00025575,2]
[394143912,1763320239193,-150.0,0.00025575,2]
[394143913,1763320239206,-150.0,0.00025575,2]
[394143914,1763320239224,-150.0,0.00025575,2]
[394143915,1763320239236,-3430.0,0.00025575,2]
[394143916,1763320239248,-575.0,0.00025575,2]
[394143917,1763320239262,-718.722,0.00025575,2]
[394143918,1763320239274,-1348.318,0.00025575,2]
[394143919,1763320239286,-1599.0,0.00025575,2]
[394143920,1763320239298,-821.0,0.00025575,2]
[394143921,1763320239309,-1275.0,0.00025575,2]
[394143922,1763320239319,-814.0,0.00025575,2]
[394143923,1763320239330,-151.27874146,0.00025799,2]
[394143924,1763320239341,-270.33842893,0.00025799,2]
[394143925,1763320239351,-500.0,0.00025799,2]
[394143926,1763320239361,-279.91775906,0.00025799,2]
[394143927,1763320239371,-500.0,0.00025799,2]
[394143928,1763320239381,-502.67080095,0.00025799,2]
[394143929,1763320239392,-500.0,0.00025799,2]
[394143930,1763320239402,-500.0,0.00025799,2]
[394143931,1763320239413,-500.0,0.00025799,2]
[394143932,1763320239423,-500.0,0.00025799,2]
[394143933,1763320239434,-500.0,0.00025799,2]
[394143934,1763320239443,-500.0,0.00025799,2]
[394143935,1763320239454,-34945.3083811,0.000258,3]
[394143936,1763320239469,-26676.6713229,0.000258,3]
[394143937,1763320239479,-151.0,0.00025814,2]
[394143938,1763320239490,-156.587,0.00025814,2]
[394143939,1763320239500,-311.84574709,0.00025814,2]
[394143940,1763320239510,-500.0,0.0002588,2]
[394143941,1763320239521,-182.08,0.00026194,2]
[394143942,1763320239532,-500.54702076,0.00026515,2]
[394143943,1763320239542,-23772.17451349,0.00026574,2]
[394143944,1763320239552,-663.99,0.00026676,2]
[394143945,1763320239562,-26676.6713229,0.00026841,3]
[394143946,1763320239572,-13497.23946684,0.00026851,2]
[394143947,1763320239582,-182.08,0.00027333,2]
[394143948,1763320239592,-150.0,0.00027397,7]
[394143949,1763320239605,-198.11,0.00027397,2]
[394143950,1763320239614,-205.72718128,0.00027468,2]
[394143951,1763320239624,-500.0,0.00027775,5]
[394143952,1763320239634,-226.36441641,0.00027775,5]
[394143953,1763320239644,-1190.0,0.00028131,2]
[394143954,1763320239653,-907.0,0.00028131,2]
[394143955,1763320239662,-1604.0,0.00028131,2]
[394143956,1763320239672,-298.21916561,0.00028323,5]
[394143957,1763320239685,-34945.3083811,0.00028351,3]
[394143958,1763320239694,-23772.17451349,0.00028375,2]
[394143959,1763320239704,-153.0,0.00028432,2]
[394143960,1763320239718,-153.0,0.00028432,2]
[394143961,1763320239727,-153.0,0.00028432,2]
[394143962,1763320239737,-153.0,0.00028432,2]
[394143963,1763320239746,-153.0,0.00028432,2]
[394143964,1763320239755,-153.0,0.00028432,2]
[394143965,1763320239764,-153.0,0.00028432,2]
[394143966,1763320239774,-153.0,0.00028432,2]
[394143967,1763320239783,-153.0,0.00028432,2]
[394143968,1763320239792,-153.0,0.00028432,2]
[394143969,1763320239802,-153.0,0.00028432,2]
[394143970,1763320239811,-153.0,0.00028432,2]
[394143971,1763320239820,-153.0,0.00028432,2]
[394143972,1763320239829,-153.0,0.00028432,2]
[394143973,1763320239838,-153.0,0.00028432,2]
[394143974,1763320239847,-153.0,0.00028432,2]
[394143975,1763320239856,-153.0,0.00028432,2]
[394143976,1763320239866,-153.0,0.00028432,2]
[394143977,1763320239875,-153.0,0.00028432,2]
[394143978,1763320239883,-153.0,0.00028432,2]
[394143980,1763320239893,-153.0,0.00028432,2]
[394143981,1763320239902,-153.0,0.00028432,2]
[394143982,1763320239912,-153.0,0.00028432,2]
[394143983,1763320239922,-153.0,0.00028432,2]
[394143984,1763320239931,-153.0,0.00028432,2]
[394143985,1763320239940,-153.0,0.00028432,2]
[394143986,1763320239951,-153.0,0.00028432,2]
[394143987,1763320239961,-153.0,0.00028432,2]
[394143988,1763320239975,-153.0,0.00028432,2]
[394143989,1763320239984,-153.0,0.00028432,2]
[394143990,1763320239993,-182.08,0.00028472,2]
[394143992,1763320240003,-26676.6713229,0.00028554,3]
[394143994,1763320240013,-150.0,0.00028568,56]
[394143995,1763320240023,-3430.0,0.00028575,2]
[394143996,1763320240032,-575.0,0.00028575,2]
[394143997,1763320240041,-608.0,0.00028575,2]
[394143998,1763320240050,-1318.0,0.00028575,2]
[394143999,1763320240059,-1599.0,0.00028575,2]
[394144000,1763320240069,-821.0,0.00028575,2]
[394144001,1763320240079,-1275.0,0.00028575,2]
[394144002,1763320240089,-793.0,0.00028575,2]
[394144003,1763320240100,-500.0,0.00028671,5]
[394144004,1763320240110,-500.0,0.00028671,5]
[394144005,1763320240120,-500.0,0.00028671,5]
[394144006,1763320240130,-1000.0,0.00029219,5]
[394144007,1763320240140,-502.51981297,0.00029219,5]
[394144008,1763320240150,-1000.0,0.00029219,5]
[394144009,1763320240159,-616.22593718,0.00029301,2]
[394144010,1763320240168,-1070.3628517,0.00029369,2]
[394144011,1763320240178,-34945.3083811,0.00029402,3]
[394144012,1763320240187,-26676.6713229,0.00029402,3]
[394144013,1763320240204,-9623.0,0.0002942,5]
[394144014,1763320240227,-13497.23946684,0.0002942,2]
[394144015,1763320240240,-500.0,0.00029469,5]
[394144016,1763320240256,-500.0,0.00029469,5]
[394144017,1763320240270,-1287.7,0.00029493,30]
[394144018,1763320240287,-150.0,0.00029499,23]
[394144019,1763320240301,-104835.925143,0.0002959,3]
[394144020,1763320240313,-106706.685292,0.0002959,3]
[394144021,1763320240327,-543.43,0.000296,7]
[394144022,1763320240342,-2759.98,0.000296,2]
[394144023,1763320240356,-182.08,0.00029611,2]
[394144024,1763320240371,-2504.37,0.000297,14]
[394144025,1763320240386,-150.0,0.00029722,110]
[394144026,1763320240400,-334.38895643,0.00029767,5]
[394144027,1763320240416,-1500.0,0.00029767,5]
[394144028,1763320240430,-600.0,0.000299,10]
[394144029,1763320240443,-1000.0,0.00030017,5]
[394144030,1763320240457,-1000.0,0.00030017,5]